[Event "European Online Club-ch-D 2021"]
[Site "Online"]
[Date "2021.03.27"]
[Round "5.16"]
[White "Estevez Sacristan, Deva"]
[Black "Zeman, Matyas"]
[Result "0-1"]
[ECO "B35"]
[WhiteElo "1932"]
[BlackElo "2261"]
[Annotator "NA"]
[PlyCount "72"]
[EventDate "2021.03.27"]
[EventType "team-tourn"]
[EventCountry "NET"]
[SourceTitle "playchess.com"]
[Source "ChessBase"]
[SourceQuality "1"]
[TimeControl "900+5"]

1. e4 {[%emt 0:00:00]} c5 {[%emt 0:00:06]} 2. Nc3 {[%emt 0:00:04]} Nc6 {[%emt 0:00:08]} 3. Nf3 {[%emt 0:00:03]} g6 {[%emt 0:00:13]} 4. d4 {[%emt 0:00:05]} cxd4 {[%emt 0:00:00]} 5. Nxd4 {[%emt 0:00:14]} Bg7 {[%emt 0:00:01]} 6. Be3 {[%emt 0:00:07]} Nf6 {[%emt 0:00:03]} 7. Bc4 {[%emt 0:00:06]} O-O {[%emt 0:00:01]} 8. Bb3 {[%emt 0:00:05]} Re8 {[%emt 0:00:03]} 9. f3 {[%emt 0:00:23]} e6 {[%emt 0:00:02]} 10. Qd2 {[%emt 0:00:45]} d5 {[%emt 0:00:37]} 11. exd5 {[%emt 0:01:05]} Nxd5 {[%emt 0:00:00]} 12. Nxd5 {[%emt 0:00:20]} Nxd4 {[%emt 0:01:06]} 13. Nc3 {[%emt 0:01:44]} Nxb3 {[%emt 0:01:11]} 14. Qxd8 {[%emt 0:00:28]} Rxd8 {[%emt 0:00:00]} 15. axb3 {[%emt 0:00:02]} a6 {[%emt 0:00:04]} 16. Ke2 {[%emt 0:00:27]} Bd7 {[%emt 0:00:03]} 17. Bb6 {[%emt 0:00:19]} Re8 {[%emt 0:01:54]} 18. Rhd1 {[%emt 0:00:13]} Bc6 {[%emt 0:00:05]} 19. Rd3 {[%emt 0:01:26]} Rac8 {[%emt 0:00:36]} 20. Rad1 {[%emt 0:00:10]} f5 {[%emt 0:00:30]} 21. Kf2 {[%emt 0:02:55]} e5 {[%emt 0:00:32]} 22. Re3 {[%emt 0:00:33]} Kf7 {[%emt 0:01:40]} 23. Re2 {[%emt 0:00:28]} Re6 {[%emt 0:00:10]} 24. Bd8 {[%emt 0:02:00]} h6 {[%emt 0:01:01]} 25. Na4 {[%emt 0:00:34]} Bf8 {[%emt 0:00:43]} 26. Kf1 {[%emt 0:00:34]} Bb5 {[%emt 0:00:38]} 27. c4 {[%emt 0:00:02]} Bxa4 {[%emt 0:00:02]} 28. bxa4 {[%emt 0:00:05]} Rxc4 {[%emt 0:00:02]} 29. Rd7+ {[%emt 0:00:43]} Ke8 {[%emt 0:00:03]} 30. Red2 {[%emt 0:00:03]} e4 {[%emt 0:01:00]} 31. fxe4 {[%emt 0:01:12]} Rcxe4 {[%emt 0:00:02]} 32. Ba5 {[%emt 0:00:11]} Re1+ {[%emt 0:00:05]} 33. Kf2 {[%emt 0:00:02]} Bc5+ {[%emt 0:00:03]} 34. Kf3 {[%emt 0:00:02]} R1e3+ {[%emt 0:00:34]} 35. Kf2 {[%emt 0:00:11]} Rd3+ {[%emt 0:00:02]} 36. Kf1 {[%emt 0:00:04]} Rxd7 {[%emt 0:00:03]} 0-1

[Event "European Online Club-ch-D 2021"]
[Site "Online"]
[Date "2021.03.27"]
[Round "5.17"]
[White "Tokhirjonova, Gulrukhbegim"]
[Black "Reimanis, Ritvars"]
[Result "0-1"]
[ECO "B31"]
[WhiteElo "2362"]
[BlackElo "2412"]
[Annotator "NA"]
[PlyCount "76"]
[EventDate "2021.03.27"]
[EventType "team-tourn"]
[EventCountry "NET"]
[SourceTitle "playchess.com"]
[Source "ChessBase"]
[SourceQuality "1"]
[TimeControl "900+5"]

1. e4 {[%emt 0:00:00]} c5 {[%emt 0:00:04]} 2. Nf3 {[%emt 0:00:02]} Nc6 {[%emt 0:00:02]} 3. Bb5 {[%emt 0:00:02]} g6 {[%emt 0:00:01]} 4. c3 {[%emt 0:00:03]} Nf6 {[%emt 0:00:07]} 5. Qe2 {[%emt 0:00:02]} Bg7 {[%emt 0:00:03]} 6. O-O {[%emt 0:00:02]} O-O {[%emt 0:00:03]} 7. d4 {[%emt 0:00:02]} cxd4 {[%emt 0:00:02]} 8. cxd4 {[%emt 0:00:01]} d5 {[%emt 0:00:01]} 9. e5 {[%emt 0:00:01]} Ne4 {[%emt 0:00:01]} 10. Rd1 {[%emt 0:00:01]} Qb6 {[%emt 0:00:08]} 11. Be3 {[%emt 0:00:28]} f6 {[%emt 0:00:16]} 12. Nc3 {[%emt 0:00:11]} Nxc3 {[%emt 0:00:03]} 13. bxc3 {[%emt 0:00:01]} Bg4 {[%emt 0:00:06]} 14. Rab1 {[%emt 0:00:09]} Qa5 {[%emt 0:00:01]} 15. h3 {[%emt 0:00:14]} Bxf3 {[%emt 0:00:03]} 16. Qxf3 {[%emt 0:00:05]} Rad8 {[%emt 0:00:02]} 17. exf6 {[%emt 0:01:27]} Bxf6 {[%emt 0:00:17]} 18. Qg4 {[%emt 0:00:12]} Kg7 {[%emt 0:00:37]} 19. Bd3 {[%emt 0:01:01]} Qc7 {[%emt 0:00:20]} 20. f4 {[%emt 0:00:32]} Kh8 {[%emt 0:00:09]} 21. Rf1 {[%emt 0:00:15]} Rg8 {[%emt 0:00:10]} 22. h4 {[%emt 0:00:49]} Na5 {[%emt 0:00:10]} 23. f5 {[%emt 0:00:28]} Qxc3 {[%emt 0:01:34]} 24. Rbd1 {[%emt 0:02:44]} Nc4 {[%emt 0:00:06]} 25. Bf4 {[%emt 0:01:13]} Qxd4+ {[%emt 0:01:03]} 26. Kh1 {[%emt 0:00:14]} Ne3 {[%emt 0:01:12]} 27. Qf3 {[%emt 0:00:15]} Nxd1 {[%emt 0:00:22]} 28. Rxd1 {[%emt 0:00:03]} g5 {[%emt 0:01:50]} 29. hxg5 {[%emt 0:00:14]} Bxg5 {[%emt 0:00:02]} 30. Bh2 {[%emt 0:00:41]} Bf6 {[%emt 0:00:19]} 31. Be2 {[%emt 0:00:42]} Qe4 {[%emt 0:01:15]} 32. Qf1 {[%emt 0:00:05]} d4 {[%emt 0:00:11]} 33. Bf3 {[%emt 0:00:35]} Qxf5 {[%emt 0:00:09]} 34. Qc4 {[%emt 0:00:08]} b6 {[%emt 0:00:21]} 35. Re1 {[%emt 0:00:17]} d3 {[%emt 0:00:41]} 36. Be4 {[%emt 0:00:08]} d2 {[%emt 0:00:15]} 37. Rd1 {[%emt 0:00:17]} Qg4 {[%emt 0:00:39]} 38. Qc2 {[%emt 0:00:42]} Rc8 {[%emt 0:00:08]} 0-1

[Event "European Online Club-ch-D 2021"]
[Site "Online"]
[Date "2021.03.27"]
[Round "5.18"]
[White "Kvetny, Mark"]
[Black "Nandhidhaa, P V"]
[Result "1-0"]
[ECO "C00"]
[WhiteElo "2416"]
[BlackElo "2365"]
[Annotator "NA"]
[PlyCount "71"]
[EventDate "2021.03.27"]
[EventType "team-tourn"]
[EventCountry "NET"]
[SourceTitle "playchess.com"]
[Source "ChessBase"]
[SourceQuality "1"]
[TimeControl "900+5"]

1. Nf3 {[%emt 0:00:00]} e6 {[%emt 0:00:16]} 2. g3 {[%emt 0:00:35]} Nf6 {[%emt 0:00:09]} 3. Bg2 {[%emt 0:00:01]} d5 {[%emt 0:00:01]} 4. O-O {[%emt 0:00:14]} Be7 {[%emt 0:00:02]} 5. d3 {[%emt 0:00:02]} O-O {[%emt 0:00:05]} 6. Nbd2 {[%emt 0:00:51]} c5 {[%emt 0:00:23]} 7. e4 {[%emt 0:00:04]} Nc6 {[%emt 0:00:08]} 8. Qe2 {[%emt 0:00:06]} b5 {[%emt 0:00:35]} 9. e5 {[%emt 0:01:19]} Nd7 {[%emt 0:00:04]} 10. Re1 {[%emt 0:00:01]} Bb7 {[%emt 0:00:14]} 11. Nf1 {[%emt 0:00:07]} Rc8 {[%emt 0:00:07]} 12. c3 {[%emt 0:00:25]} b4 {[%emt 0:00:46]} 13. h4 {[%emt 0:00:18]} a5 {[%emt 0:00:32]} 14. N1h2 {[%emt 0:00:18]} a4 {[%emt 0:01:05]} 15. a3 {[%emt 0:00:03]} bxc3 {[%emt 0:01:33]} 16. bxc3 {[%emt 0:00:02]} Na5 {[%emt 0:00:02]} 17. Bf4 {[%emt 0:00:17]} Nb3 {[%emt 0:00:33]} 18. Ra2 {[%emt 0:00:35]} Qa5 {[%emt 0:00:43]} 19. Qc2 {[%emt 0:01:25]} Rfe8 {[%emt 0:01:06]} 20. h5 {[%emt 0:01:21]} Bf8 {[%emt 0:03:09]} 21. h6 {[%emt 0:00:46]} g6 {[%emt 0:00:04]} 22. Ng4 {[%emt 0:00:04]} d4 {[%emt 0:00:07]} 23. Bd2 {[%emt 0:01:20]} Nxd2 {[%emt 0:00:29]} 24. Nxd2 {[%emt 0:00:03]} Bxg2 {[%emt 0:00:36]} 25. Kxg2 {[%emt 0:00:04]} dxc3 {[%emt 0:00:22]} 26. Ne4 {[%emt 0:00:08]} Kh8 {[%emt 0:00:52]} 27. Qxc3 {[%emt 0:01:33]} Qxc3 {[%emt 0:00:05]} 28. Nxc3 {[%emt 0:00:03]} c4 {[%emt 0:00:06]} 29. d4 {[%emt 0:00:10]} Nb6 {[%emt 0:00:09]} 30. Rb2 {[%emt 0:01:26]} Nd5 {[%emt 0:00:20]} 31. Nxd5 {[%emt 0:00:02]} exd5 {[%emt 0:00:07]} 32. Nf6 {[%emt 0:00:01]} Red8 {[%emt 0:00:20]} 33. Rb7 {[%emt 0:00:11]} Bxh6 {[%emt 0:00:40]} 34. Rxf7 {[%emt 0:01:34]} Bg7 {[%emt 0:00:06]} 35. Rh1 {[%emt 0:00:04]} h6 {[%emt 0:00:19]} 36. Rxh6+ {[%emt 0:00:07]} 1-0

[Event "European Online Club-ch-D 2021"]
[Site "Online"]
[Date "2021.03.27"]
[Round "5.19"]
[White "Dauletova, Gulmira"]
[Black "Hoffmann, Hendrik"]
[Result "1-0"]
[ECO "B07"]
[WhiteElo "2285"]
[BlackElo "2242"]
[Annotator "NA"]
[PlyCount "35"]
[EventDate "2021.03.27"]
[EventType "team-tourn"]
[EventCountry "NET"]
[SourceTitle "playchess.com"]
[Source "ChessBase"]
[SourceQuality "1"]
[TimeControl "900+5"]

1. e4 {[%emt 0:00:00]} d6 {[%emt 0:00:06]} 2. d4 {[%emt 0:00:02]} Nf6 {[%emt 0:00:01]} 3. Nc3 {[%emt 0:00:02]} g6 {[%emt 0:00:03]} 4. Be3 {[%emt 0:00:05]} Bg7 {[%emt 0:00:02]} 5. Qd2 {[%emt 0:00:08]} O-O {[%emt 0:00:05]} 6. O-O-O {[%emt 0:01:19]} c6 {[%emt 0:00:08]} 7. Bh6 {[%emt 0:00:11]} b5 {[%emt 0:00:05]} 8. f3 {[%emt 0:00:42]} b4 {[%emt 0:00:37]} 9. Nce2 {[%emt 0:01:23]} a5 {[%emt 0:00:06]} 10. Kb1 {[%emt 0:00:37]} Ba6 {[%emt 0:00:08]} 11. h4 {[%emt 0:00:16]} Qc7 {[%emt 0:00:40]} 12. h5 {[%emt 0:00:53]} e5 {[%emt 0:00:08]} 13. Ng3 {[%emt 0:02:22]} Bxf1 {[%emt 0:00:07]} 14. Rxf1 {[%emt 0:02:26]} Ne8 {[%emt 0:03:40]} 15. Bxg7 {[%emt 0:00:25]} Kxg7 {[%emt 0:00:08]} 16. f4 {[%emt 0:00:26]} Ra7 {[%emt 0:01:28]} 17. fxe5 {[%emt 0:00:15]} dxe5 {[%emt 0:00:06]} 18. hxg6 {[%emt 0:00:08]} 1-0

[Event "European Online Club-ch-D 2021"]
[Site "Online"]
[Date "2021.03.27"]
[Round "5.20"]
[White "Kelmendi, Bajrush"]
[Black "Muminova, Nafisa"]
[Result "0-1"]
[ECO "C20"]
[WhiteElo "1951"]
[BlackElo "2274"]
[Annotator "NA"]
[PlyCount "144"]
[EventDate "2021.03.27"]
[EventType "team-tourn"]
[EventCountry "NET"]
[SourceTitle "playchess.com"]
[Source "ChessBase"]
[SourceQuality "1"]
[TimeControl "900+5"]

1. c4 {[%emt 0:00:00]} e5 {[%emt 0:00:06]} 2. Nc3 {[%emt 0:00:03]} Nc6 {[%emt 0:00:02]} 3. e4 {[%emt 0:00:04]} Bc5 {[%emt 0:00:08]} 4. d3 {[%emt 0:00:02]} d6 {[%emt 0:00:12]} 5. Be2 {[%emt 0:00:04]} Nf6 {[%emt 0:00:10]} 6. h4 {[%emt 0:00:09]} Be6 {[%emt 0:00:16]} 7. a3 {[%emt 0:00:06]} a5 {[%emt 0:00:11]} 8. Be3 {[%emt 0:00:04]} Qd7 {[%emt 0:00:42]} 9. Nf3 {[%emt 0:00:08]} Ng4 {[%emt 0:00:48]} 10. Bxc5 {[%emt 0:01:40]} dxc5 {[%emt 0:00:04]} 11. Na4 {[%emt 0:00:11]} b6 {[%emt 0:00:05]} 12. Nc3 {[%emt 0:00:02]} h5 {[%emt 0:00:49]} 13. Nd5 {[%emt 0:00:18]} Ne7 {[%emt 0:01:44]} 14. Ng5 {[%emt 0:00:44]} Bxd5 {[%emt 0:02:45]} 15. cxd5 {[%emt 0:00:10]} c6 {[%emt 0:00:19]} 16. dxc6 {[%emt 0:00:15]} Nxc6 {[%emt 0:00:03]} 17. Qa4 {[%emt 0:02:35]} Rd8 {[%emt 0:02:13]} 18. f3 {[%emt 0:02:15]} Nf6 {[%emt 0:00:27]} 19. O-O-O {[%emt 0:00:08]} Nd4 {[%emt 0:01:12]} 20. Qxd7+ {[%emt 0:00:22]} Rxd7 {[%emt 0:00:05]} 21. Kd2 {[%emt 0:00:18]} Ke7 {[%emt 0:00:11]} 22. Ke3 {[%emt 0:00:03]} Rhd8 {[%emt 0:00:16]} 23. g3 {[%emt 0:00:44]} g6 {[%emt 0:01:14]} 24. Bf1 {[%emt 0:00:36]} Ne8 {[%emt 0:00:12]} 25. f4 {[%emt 0:00:06]} f6 {[%emt 0:00:11]} 26. Nf3 {[%emt 0:00:12]} Nxf3 {[%emt 0:00:11]} 27. Kxf3 {[%emt 0:00:02]} Nc7 {[%emt 0:00:03]} 28. fxe5 {[%emt 0:00:09]} fxe5 {[%emt 0:00:02]} 29. Ke3 {[%emt 0:00:02]} Nb5 {[%emt 0:00:17]} 30. Bh3 {[%emt 0:00:17]} Rd6 {[%emt 0:00:03]} 31. g4 {[%emt 0:00:07]} c4 {[%emt 0:00:25]} 32. Bf1 {[%emt 0:00:05]} Nd4 {[%emt 0:00:48]} 33. Rh2 {[%emt 0:00:16]} hxg4 {[%emt 0:00:14]} 34. Rg2 {[%emt 0:00:07]} Rf8 {[%emt 0:00:12]} 35. Be2 {[%emt 0:00:03]} Nxe2 {[%emt 0:00:04]} 36. Kxe2 {[%emt 0:00:01]} cxd3+ {[%emt 0:00:07]} 37. Rxd3 {[%emt 0:00:02]} Rxd3 {[%emt 0:00:05]} 38. Kxd3 {[%emt 0:00:02]} Rf4 {[%emt 0:00:05]} 39. Ke3 {[%emt 0:00:12]} Kf7 {[%emt 0:00:10]} 40. Rc2 {[%emt 0:00:12]} Rf3+ {[%emt 0:00:02]} 41. Ke2 {[%emt 0:00:05]} Rb3 {[%emt 0:00:03]} 42. Kf1 {[%emt 0:00:14]} Kg7 {[%emt 0:00:06]} 43. Rg2 {[%emt 0:00:07]} g3 {[%emt 0:00:03]} 44. Rc2 {[%emt 0:00:04]} Kh6 {[%emt 0:00:02]} 45. Kg2 {[%emt 0:00:02]} Kh5 {[%emt 0:00:09]} 46. Kh3 {[%emt 0:00:02]} g2+ {[%emt 0:00:11]} 47. Kxg2 {[%emt 0:00:03]} Kxh4 {[%emt 0:00:02]} 48. Kh2 {[%emt 0:00:06]} g5 {[%emt 0:00:02]} 49. Kg2 {[%emt 0:00:05]} Kg4 {[%emt 0:00:05]} 50. Rf2 {[%emt 0:00:04]} a4 {[%emt 0:00:06]} 51. Kg1 {[%emt 0:00:04]} Kg3 {[%emt 0:00:06]} 52. Rf5 {[%emt 0:00:04]} g4 {[%emt 0:00:05]} 53. Rf2 {[%emt 0:00:02]} Kh3 {[%emt 0:00:06]} 54. Rh2+ {[%emt 0:00:02]} Kg3 {[%emt 0:00:03]} 55. Rd2 {[%emt 0:00:05]} Kf4 {[%emt 0:00:04]} 56. Rc2 {[%emt 0:00:06]} Kxe4 {[%emt 0:00:04]} 57. Kg2 {[%emt 0:00:03]} Kf4 {[%emt 0:00:04]} 58. Rf2+ {[%emt 0:00:02]} Kg5 {[%emt 0:00:03]} 59. Rc2 {[%emt 0:00:02]} Kh4 {[%emt 0:00:10]} 60. Rd2 {[%emt 0:00:03]} e4 {[%emt 0:00:02]} 61. Re2 {[%emt 0:00:12]} e3 {[%emt 0:00:11]} 62. Rc2 {[%emt 0:00:04]} b5 {[%emt 0:00:02]} 63. Kh2 {[%emt 0:00:04]} g3+ {[%emt 0:00:08]} 64. Kg2 {[%emt 0:00:02]} Kg4 {[%emt 0:00:01]} 65. Re2 {[%emt 0:00:04]} Rd3 {[%emt 0:00:08]} 66. Re1 {[%emt 0:00:03]} Rd2+ {[%emt 0:00:04]} 67. Kg1 {[%emt 0:00:02]} Kf3 {[%emt 0:00:06]} 68. Rf1+ {[%emt 0:00:06]} Rf2 {[%emt 0:00:02]} 69. Rc1 {[%emt 0:00:02]} Rg2+ {[%emt 0:00:03]} 70. Kh1 {[%emt 0:00:05]} Rf2 {[%emt 0:00:08]} 71. Kg1 {[%emt 0:00:05]} g2 {[%emt 0:00:06]} 72. Kh2 {[%emt 0:00:22]} Rf1 {[%emt 0:00:08]} 0-1

[Event "European Online Club-ch-D 2021"]
[Site "Online"]
[Date "2021.03.27"]
[Round "6.1"]
[White "Eren, Ataberk"]
[Black "Reimanis, Ritvars"]
[Result "1-0"]
[ECO "D02"]
[WhiteElo "2306"]
[BlackElo "2412"]
[Annotator "NA"]
[PlyCount "91"]
[EventDate "2021.03.27"]
[EventType "team-tourn"]
[EventCountry "NET"]
[SourceTitle "playchess.com"]
[Source "ChessBase"]
[SourceQuality "1"]
[TimeControl "900+5"]

1. d4 {[%emt 0:00:00]} Nf6 {[%emt 0:00:03]} 2. Nf3 {[%emt 0:00:04]} e6 {[%emt 0:00:01]} 3. Bf4 {[%emt 0:00:02]} d5 {[%emt 0:00:01]} 4. e3 {[%emt 0:00:01]} Bd6 {[%emt 0:00:01]} 5. Bg3 {[%emt 0:00:01]} c5 {[%emt 0:00:01]} 6. Bb5+ {[%emt 0:00:02]} Nc6 {[%emt 0:00:04]} 7. c3 {[%emt 0:00:25]} O-O {[%emt 0:00:06]} 8. Nbd2 {[%emt 0:00:04]} Ne4 {[%emt 0:02:10]} 9. Nxe4 {[%emt 0:00:20]} dxe4 {[%emt 0:00:03]} 10. Nd2 {[%emt 0:00:07]} f5 {[%emt 0:00:25]} 11. Bxc6 {[%emt 0:01:13]} bxc6 {[%emt 0:00:05]} 12. Bxd6 {[%emt 0:00:04]} Qxd6 {[%emt 0:00:04]} 13. Nb3 {[%emt 0:00:04]} cxd4 {[%emt 0:00:08]} 14. Qxd4 {[%emt 0:00:44]} Qc7 {[%emt 0:00:07]} 15. Rd1 {[%emt 0:00:23]} Rb8 {[%emt 0:01:40]} 16. Qd6 {[%emt 0:00:21]} Qxd6 {[%emt 0:02:13]} 17. Rxd6 {[%emt 0:00:03]} Rb6 {[%emt 0:00:01]} 18. O-O {[%emt 0:01:47]} Kf7 {[%emt 0:00:05]} 19. Rfd1 {[%emt 0:00:12]} Ke7 {[%emt 0:00:02]} 20. R6d2 {[%emt 0:01:17]} Rb5 {[%emt 0:01:13]} 21. c4 {[%emt 0:02:17]} Rb4 {[%emt 0:00:03]} 22. Na5 {[%emt 0:00:16]} Kf6 {[%emt 0:00:45]} 23. b3 {[%emt 0:00:15]} Rb6 {[%emt 0:00:15]} 24. Rd6 {[%emt 0:00:21]} c5 {[%emt 0:00:28]} 25. Rc6 {[%emt 0:01:40]} Rxc6 {[%emt 0:00:53]} 26. Nxc6 {[%emt 0:00:02]} Bb7 {[%emt 0:02:26]} 27. Na5 {[%emt 0:00:02]} Rf7 {[%emt 0:01:19]} 28. Kf1 {[%emt 0:00:11]} Rc7 {[%emt 0:00:11]} 29. Rd8 {[%emt 0:00:08]} Bc8 {[%emt 0:00:03]} 30. Ke1 {[%emt 0:00:23]} Ke7 {[%emt 0:00:07]} 31. Rg8 {[%emt 0:00:02]} Kf6 {[%emt 0:00:33]} 32. Kd2 {[%emt 0:00:14]} e5 {[%emt 0:00:05]} 33. Rf8+ {[%emt 0:00:18]} Ke7 {[%emt 0:00:02]} 34. Rh8 {[%emt 0:00:04]} h6 {[%emt 0:00:06]} 35. Kc3 {[%emt 0:00:22]} f4 {[%emt 0:00:29]} 36. a3 {[%emt 0:00:15]} Be6 {[%emt 0:00:33]} 37. Ra8 {[%emt 0:00:16]} Kf6 {[%emt 0:00:06]} 38. Rd8 {[%emt 0:00:35]} Ke7 {[%emt 0:00:07]} 39. Rd2 {[%emt 0:00:23]} g5 {[%emt 0:00:13]} 40. b4 {[%emt 0:00:08]} cxb4+ {[%emt 0:00:01]} 41. axb4 {[%emt 0:00:02]} a6 {[%emt 0:00:21]} 42. c5 {[%emt 0:00:10]} h5 {[%emt 0:00:01]} 43. Rd6 {[%emt 0:00:08]} g4 {[%emt 0:00:08]} 44. Nc6+ {[%emt 0:00:07]} Rxc6 {[%emt 0:00:36]} 45. Rxc6 {[%emt 0:00:04]} h4 {[%emt 0:00:01]} 46. g3 {[%emt 0:00:01]} 1-0

[Event "European Online Club-ch-D 2021"]
[Site "Online"]
[Date "2021.03.27"]
[Round "6.2"]
[White "Kvetny, Mark"]
[Black "Erdogan, Anil Berk"]
[Result "0-1"]
[ECO "A36"]
[WhiteElo "2416"]
[BlackElo "2155"]
[Annotator "NA"]
[PlyCount "78"]
[EventDate "2021.03.27"]
[EventType "team-tourn"]
[EventCountry "NET"]
[SourceTitle "playchess.com"]
[Source "ChessBase"]
[SourceQuality "1"]
[TimeControl "900+5"]

1. c4 {[%emt 0:00:00]} c5 {[%emt 0:00:03]} 2. g3 {[%emt 0:00:18]} g6 {[%emt 0:00:07]} 3. Bg2 {[%emt 0:00:04]} Bg7 {[%emt 0:00:01]} 4. Nc3 {[%emt 0:00:02]} Nc6 {[%emt 0:00:02]} 5. d3 {[%emt 0:00:04]} e6 {[%emt 0:00:03]} 6. Bf4 {[%emt 0:01:19]} d6 {[%emt 0:01:13]} 7. Qc1 {[%emt 0:00:39]} h6 {[%emt 0:01:03]} 8. a3 {[%emt 0:01:22]} Nge7 {[%emt 0:00:43]} 9. Rb1 {[%emt 0:00:21]} a5 {[%emt 0:00:39]} 10. Nf3 {[%emt 0:01:45]} Qd7 {[%emt 0:02:07]} 11. h4 {[%emt 0:01:23]} b6 {[%emt 0:01:32]} 12. Nb5 {[%emt 0:01:34]} e5 {[%emt 0:00:30]} 13. Bd2 {[%emt 0:00:04]} Bb7 {[%emt 0:01:34]} 14. O-O {[%emt 0:01:08]} Nd4 {[%emt 0:01:55]} 15. Nbxd4 {[%emt 0:00:23]} exd4 {[%emt 0:00:14]} 16. b4 {[%emt 0:00:19]} axb4 {[%emt 0:01:04]} 17. axb4 {[%emt 0:00:03]} Ra7 {[%emt 0:01:05]} 18. bxc5 {[%emt 0:01:10]} bxc5 {[%emt 0:00:02]} 19. Rb6 {[%emt 0:01:18]} Nc8 {[%emt 0:00:56]} 20. Rb3 {[%emt 0:00:16]} h5 {[%emt 0:00:10]} 21. e3 {[%emt 0:01:56]} dxe3 {[%emt 0:00:20]} 22. Bxe3 {[%emt 0:00:01]} O-O {[%emt 0:00:06]} 23. Bh6 {[%emt 0:00:15]} Ne7 {[%emt 0:00:26]} 24. Bxg7 {[%emt 0:00:08]} Kxg7 {[%emt 0:00:00]} 25. Re1 {[%emt 0:00:23]} Nf5 {[%emt 0:00:21]} 26. Qb2+ {[%emt 0:00:02]} Kg8 {[%emt 0:00:11]} 27. Ng5 {[%emt 0:00:25]} Bxg2 {[%emt 0:00:09]} 28. Kxg2 {[%emt 0:00:01]} Nd4 {[%emt 0:00:09]} 29. Rb8 {[%emt 0:00:07]} Qc6+ {[%emt 0:00:28]} 30. Kg1 {[%emt 0:00:03]} Ra8 {[%emt 0:00:06]} 31. Rxf8+ {[%emt 0:00:16]} Rxf8 {[%emt 0:00:02]} 32. Re3 {[%emt 0:00:16]} d5 {[%emt 0:00:10]} 33. cxd5 {[%emt 0:00:08]} Qxd5 {[%emt 0:00:00]} 34. Ne4 {[%emt 0:00:02]} Qc6 {[%emt 0:00:11]} 35. Qc3 {[%emt 0:00:03]} Rc8 {[%emt 0:00:02]} 36. Qc4 {[%emt 0:00:04]} Ne6 {[%emt 0:00:08]} 37. Re1 {[%emt 0:00:07]} Qb6 {[%emt 0:00:06]} 38. Rc1 {[%emt 0:00:03]} Qc6 {[%emt 0:00:05]} 39. Qc3 {[%emt 0:00:02]} Nd4 {[%emt 0:00:04]} 0-1